fUSD/lending_fUSD_20240802
["ID","MTS","AMOUNT","RATE_DAILY","PERIOD"]
[333924791,1722631860252,-1828.95,0.00016712,2]
[333924793,1722631860262,-500.0,0.00016712,2]
[333924795,1722631860271,-1523.35,0.00016712,2]
[333924796,1722631860281,-500.0,0.00016712,2]
[333924797,1722631860290,-2390.63,0.00016712,2]
[333924798,1722631860300,-500.0,0.00016712,2]
[333924799,1722631860310,-3050.7,0.00016712,2]
[333924800,1722631860319,-500.0,0.00016712,2]
[333924801,1722631860329,-715.07,0.00016712,2]
[333924802,1722631860338,-532.45,0.00016712,2]
[333924803,1722631860348,-500.0,0.00016712,2]
[333924804,1722631860357,-500.0,0.00016712,2]
[333924805,1722631860367,-760.35,0.00016712,2]
[333924806,1722631860377,-500.0,0.00016712,2]
[333924808,1722631860387,-763.5,0.00016712,2]
[333924810,1722631860397,-2290.94,0.00016712,2]
[333924812,1722631860406,-842.07,0.00016712,2]
[333924814,1722631860418,-1201.66,0.00016712,2]
[333924831,1722631860569,-500.0,0.00016712,2]
[333924833,1722631860579,-500.0,0.00016712,2]
[333924835,1722631860588,-1644.17,0.00016712,2]
[333924837,1722631860598,-500.0,0.00016712,2]
[333924839,1722631860608,-151.0,0.00016712,2]
[333924842,1722631860618,-151.0,0.00016712,2]
[333924844,1722631860627,-151.0,0.00016712,2]
[333924845,1722631860636,-151.0,0.00016712,2]
[333924848,1722631860646,-500.0,0.00016712,2]
[333924850,1722631860655,-2611.55,0.00016712,2]
[333924852,1722631860667,-331.04664892,0.00016712,2]
[333924853,1722631860678,-655.56,0.00016712,2]
[333924855,1722631860687,-2243.84,0.00016712,2]
[333924857,1722631860697,-547.773882,0.00016712,2]
[333924859,1722631860706,-151.0,0.00016712,2]
[333924861,1722631860717,-1960.91,0.00016712,2]
[333924863,1722631860727,-231.122026,0.00016712,2]
[333924865,1722631860738,-1055.23,0.00016712,2]
[333924867,1722631860749,-926.52,0.00016712,2]
[333924869,1722631860758,-500.0,0.00016712,2]
[333924871,1722631860767,-594.2,0.00016712,2]
[333924873,1722631860777,-500.0,0.00016712,2]
[333924875,1722631860786,-616.02,0.00016712,2]
[333924877,1722631860795,-1433.51,0.00016712,2]
[333924879,1722631860805,-500.0,0.00016712,2]
[333924881,1722631860814,-500.0,0.00016712,2]
[333924883,1722631860823,-693.43,0.00016712,2]
[333924885,1722631860832,-500.0,0.00016712,2]
[333924887,1722631860842,-500.0,0.00016712,2]
[333924889,1722631860851,-659.7,0.00016712,2]
[333924891,1722631860861,-1362.76,0.00016712,2]
[333924893,1722631860872,-596.96,0.00016712,2]
[333924895,1722631860881,-799.76,0.00016712,2]
[333924898,1722631860891,-2170.14,0.00016712,2]
[333924900,1722631860900,-500.0,0.00016712,2]
[333924902,1722631860910,-544.83,0.00016712,2]
[333924904,1722631860922,-1049.92,0.00016712,2]
[333924906,1722631860932,-2414.29,0.00016712,2]
[333924908,1722631860941,-1023.8,0.00016712,2]
[333924910,1722631860950,-569.37,0.00016712,2]
[333924912,1722631860960,-527.32,0.00016712,2]
[333924914,1722631860969,-500.0,0.00016712,2]
[333924916,1722631860978,-500.0,0.00016712,2]
[333924918,1722631860988,-500.0,0.00016712,2]
[333924920,1722631860997,-500.0,0.00016712,2]
[333924922,1722631861006,-2472.81,0.00016712,2]
[333924924,1722631861016,-1283.66,0.00016712,2]
[333924926,1722631861025,-500.0,0.00016712,2]
[333924928,1722631861035,-500.0,0.00016712,2]
[333924930,1722631861044,-500.0,0.00016712,2]
[333924932,1722631861054,-500.0,0.00016712,2]
[333924934,1722631861063,-789.0,0.00016712,2]
[333924936,1722631861072,-500.0,0.00016712,2]
[333924938,1722631861082,-500.0,0.00016712,2]
[333924940,1722631861091,-1402.24,0.00016712,2]
[333924942,1722631861101,-500.0,0.00016712,2]
[333924944,1722631861110,-953.08,0.00016712,2]
[333924946,1722631861119,-500.0,0.00016712,2]
[333924948,1722631861128,-2760.81,0.00016712,2]
[333924950,1722631861138,-2212.91,0.00016712,2]
[333924952,1722631861147,-2177.47,0.00016712,2]
[333924954,1722631861157,-201.59,0.00016712,2]
[333924956,1722631861167,-500.0,0.00016712,2]
[333924958,1722631861176,-500.0,0.00016712,2]
[333924960,1722631861186,-979.29,0.00016712,2]
[333924962,1722631861195,-1344.27,0.00016712,2]
[333924964,1722631861205,-1407.63,0.00016712,2]
[333924966,1722631861214,-541.33,0.00016712,2]
[333924968,1722631861223,-500.0,0.00016712,2]
[333924970,1722631861233,-963.23,0.00016712,2]
[333924972,1722631861243,-1483.27,0.00016712,2]
[333924974,1722631861252,-709.88,0.00016712,2]
[333924976,1722631861262,-500.0,0.00016712,2]
[333924978,1722631861271,-827.81,0.00016712,2]
[333924980,1722631861281,-1960.18,0.00016712,2]
[333924982,1722631861290,-960.38,0.00016712,2]
[333924984,1722631861300,-914.34,0.00016712,2]
[333924986,1722631861309,-1864.33,0.00016712,2]
[333924988,1722631861319,-544.17,0.00016712,2]
[333924990,1722631861328,-500.0,0.00016712,2]
[333924992,1722631861338,-1347.13,0.00016712,2]
[333924994,1722631861348,-2564.19,0.00016712,2]
[333924996,1722631861358,-1880.18,0.00016712,2]
[333924998,1722631861368,-580.01,0.00016712,2]
[333925000,1722631861377,-691.12,0.00016712,2]
[333925002,1722631861387,-500.0,0.00016712,2]
[333925004,1722631861397,-1886.99,0.00016712,2]
[333925006,1722631861407,-592.47,0.00016712,2]
[333925008,1722631861419,-1988.92,0.00016712,2]
[333925010,1722631861429,-500.0,0.00016712,2]
[333925013,1722631861439,-500.0,0.00016712,2]
[333925015,1722631861449,-500.0,0.00016712,2]
[333925017,1722631861459,-1897.5,0.00016712,2]
[333925019,1722631861469,-500.0,0.00016712,2]
[333925021,1722631861479,-1112.4,0.00016712,2]
[333925023,1722631861489,-2527.58,0.00016712,2]
[333925025,1722631861498,-2093.29,0.00016712,2]
[333925027,1722631861508,-1831.28,0.00016712,2]
[333925029,1722631861518,-588.4,0.00016712,2]
[333925031,1722631861528,-500.0,0.00016712,2]
[333925033,1722631861537,-925.35,0.00016712,2]
[333925035,1722631861549,-500.0,0.00016712,2]
[333925037,1722631861558,-1842.12,0.00016712,2]
[333925039,1722631861568,-1407.08,0.00016712,2]
[333925041,1722631861578,-1581.27,0.00016712,2]
[333925042,1722631861587,-521.62,0.00016712,2]
[333925044,1722631861597,-500.0,0.00016712,2]
[333925046,1722631861607,-1112.76,0.00016712,2]
[333925049,1722631861616,-2361.44,0.00016712,2]
[333925050,1722631861626,-864.13,0.00016712,2]
[333925053,1722631861636,-500.0,0.00016712,2]
[333925055,1722631861647,-1878.78,0.00016712,2]
[333925057,1722631861657,-895.3,0.00016712,2]
[333925059,1722631861672,-500.0,0.00016712,2]
[333925061,1722631861684,-2557.04,0.00016712,2]
[333925063,1722631861693,-1544.26,0.00016712,2]
[333925065,1722631861703,-500.0,0.00016712,2]
[333925067,1722631861712,-500.0,0.00016712,2]
[333925069,1722631861722,-500.0,0.00016712,2]
[333925071,1722631861731,-1073.09,0.00016712,2]
[333925073,1722631861741,-1361.81,0.00016712,2]
[333925075,1722631861752,-999.45,0.00016712,2]
[333925077,1722631861762,-706.59,0.00016712,2]
[333925079,1722631861771,-500.0,0.00016712,2]
[333925081,1722631861780,-500.0,0.00016712,2]
[333925083,1722631861790,-746.5,0.00016712,2]
[333925085,1722631861800,-1804.82,0.00016712,2]
[333925087,1722631861810,-538.44,0.00016712,2]
[333925089,1722631861819,-500.0,0.00016712,2]
[333925091,1722631861829,-1263.5,0.00016712,2]
[333925092,1722631861839,-893.68,0.00016712,2]
[333925095,1722631861849,-1806.35,0.00016712,2]
[333925096,1722631861858,-3700.98,0.00016712,2]
[333925099,1722631861868,-969.19,0.00016712,2]
[333925101,1722631861878,-801.23,0.00016712,2]
[333925103,1722631861888,-500.0,0.00016712,2]
[333925105,1722631861898,-2135.84,0.00016712,2]
[333925106,1722631861907,-1032.3,0.00016712,2]
[333925108,1722631861921,-1407.88,0.00016712,2]
[333925110,1722631861931,-2261.72,0.00016712,2]
[333925112,1722631861940,-500.0,0.00016712,2]
[333925114,1722631861950,-1447.05,0.00016712,2]
[333925116,1722631861961,-639.63,0.00016712,2]
[333925118,1722631861971,-1290.54,0.00016712,2]
[333925120,1722631861981,-1759.87,0.00016712,2]
[333925123,1722631861990,-1178.72,0.00016712,2]
[333925125,1722631862000,-1803.52,0.00016712,2]
[333925126,1722631862009,-1416.43,0.00016712,2]
[333925128,1722631862019,-500.0,0.00016712,2]
[333925130,1722631862029,-541.86313256,0.00016712,2]
[333925132,1722631862040,-500.0,0.00016712,2]
[333925134,1722631862050,-500.0,0.00016712,2]
[333925136,1722631862059,-500.0,0.00016712,2]
[333925138,1722631862069,-500.0,0.00016712,2]
[333925140,1722631862078,-151.0,0.00016712,2]
[333925142,1722631862088,-261.808672,0.00016712,2]
[333925144,1722631862097,-1506.41,0.00016712,2]
[333925146,1722631862106,-500.0,0.00016712,2]
[333925148,1722631862116,-500.0,0.00016712,2]
[333925150,1722631862126,-500.0,0.00016712,2]
[333925152,1722631862135,-500.0,0.00016712,2]
[333925154,1722631862145,-500.0,0.00016712,2]
[333925156,1722631862154,-500.0,0.00016712,2]
[333925158,1722631862165,-500.0,0.00016712,2]
[333925160,1722631862175,-500.0,0.00016712,2]
[333925162,1722631862184,-198.79956326,0.00016712,2]
[333925164,1722631862194,-2092.32,0.00016712,2]
[333925166,1722631862204,-2847.68,0.00016712,2]
[333925168,1722631862214,-500.0,0.00016712,2]
[333925170,1722631862225,-1867.33,0.00016712,2]
[333925172,1722631862235,-981.92,0.00016712,2]
[333925174,1722631862245,-687.87,0.00016712,2]
[333925176,1722631862255,-535.98,0.00016712,2]
[333925178,1722631862266,-646.81,0.00016712,2]
[333925180,1722631862277,-576.15178825,0.00016712,2]
[333925182,1722631862287,-500.0,0.00016712,2]
[333925184,1722631862298,-1251.38,0.00016712,2]
[333925186,1722631862308,-500.0,0.00016712,2]
[333925188,1722631862318,-1208.27,0.00016712,2]
[333925190,1722631862328,-500.0,0.00016712,2]
[333925192,1722631862337,-500.0,0.00016712,2]
[333925194,1722631862348,-500.0,0.00016712,2]
[333925196,1722631862360,-500.0,0.00016712,2]
[333925198,1722631862369,-1139.56,0.00016712,2]
[333925200,1722631862379,-500.0,0.00016712,2]
[333925202,1722631862388,-500.0,0.00016712,2]
[333925204,1722631862398,-1047.13,0.00016712,2]
[333925206,1722631862409,-500.0,0.00016712,2]
[333925208,1722631862421,-1406.83,0.00016712,2]
[333925211,1722631862431,-778.97,0.00016712,2]
[333925213,1722631862441,-1014.23,0.00016712,2]
[333925215,1722631862453,-500.0,0.00016712,2]
[333925217,1722631862463,-1407.37,0.00016712,2]
[333925219,1722631862474,-1313.94,0.00016712,2]
[333925221,1722631862483,-3926.84,0.00016712,2]
[333925223,1722631862493,-698.07,0.00016712,2]
[333925225,1722631862502,-500.0,0.00016712,2]
[333925227,1722631862512,-500.0,0.00016712,2]
[333925229,1722631862521,-526.28,0.00016712,2]
[333925231,1722631862531,-500.0,0.00016712,2]
[333925233,1722631862541,-500.0,0.00016712,2]
[333925235,1722631862550,-3610.01,0.00016712,2]
[333925237,1722631862560,-500.0,0.00016712,2]
[333925239,1722631862571,-1626.69,0.00016712,2]
[333925241,1722631862580,-510.86,0.00016712,2]
[333925243,1722631862591,-2124.83,0.00016712,2]
[333925245,1722631862602,-500.0,0.00016712,2]
[333925247,1722631862612,-500.0,0.00016712,2]
[333925249,1722631862623,-500.0,0.00016712,2]
[333925251,1722631862633,-5666.14,0.00016712,2]
[333925253,1722631862643,-978.46,0.00016712,2]
[333925255,1722631862652,-500.0,0.00016712,2]
[333925257,1722631862667,-675.11,0.00016712,2]
[333925259,1722631862676,-500.0,0.00016712,2]
[333925261,1722631862685,-1670.99,0.00016712,2]
[333925263,1722631862694,-500.0,0.00016712,2]
[333925265,1722631862705,-4143.05,0.00016712,2]
[333925267,1722631862716,-4017.26,0.00016712,2]
[333925268,1722631862726,-500.0,0.00016712,2]
[333925269,1722631862736,-582.86,0.00016712,2]
[333925302,1722631863099,-500.0,0.00016712,2]
[333925305,1722631863118,-500.0,0.00016712,2]
[333925307,1722631863128,-500.0,0.00016712,2]
[333925309,1722631863138,-1312.25,0.00016712,2]
[333925311,1722631863147,-500.0,0.00016712,2]
[333925313,1722631863156,-5428.93,0.00016712,2]
[333925315,1722631863168,-500.0,0.00016712,2]
[333925317,1722631863178,-2665.91,0.00016712,2]
[333925319,1722631863188,-1042.43,0.00016712,2]
[333925321,1722631863198,-500.0,0.00016712,2]
[333925323,1722631863207,-682.61,0.00016712,2]
[333925325,1722631863217,-500.0,0.00016712,2]
[333925327,1722631863226,-500.0,0.00016712,2]
[333925329,1722631863237,-500.0,0.00016712,2]
[333925331,1722631863247,-500.0,0.00016712,2]
[333925333,1722631863256,-500.0,0.00016712,2]
[333925335,1722631863265,-500.0,0.00016712,2]
[333925337,1722631863275,-500.0,0.00016712,2]
[333925339,1722631863285,-542.86,0.00016712,2]
[333925341,1722631863295,-5597.96,0.00016712,2]
[333925343,1722631863305,-500.0,0.00016712,2]
[333925345,1722631863316,-500.0,0.00016712,2]
[333925347,1722631863325,-2581.7,0.00016712,2]
[333925349,1722631863336,-500.0,0.00016712,2]
[333925351,1722631863345,-500.0,0.00016712,2]
[333925353,1722631863355,-770.59,0.00016712,2]
[333925355,1722631863365,-500.0,0.00016712,2]
[333925357,1722631863374,-500.0,0.00016712,2]
[333925359,1722631863383,-500.0,0.00016712,2]
[333925361,1722631863393,-1538.15,0.00016712,2]
[333925363,1722631863402,-4231.25,0.00016712,2]
[333925365,1722631863412,-500.0,0.00016712,2]
[333925367,1722631863424,-19964.17,0.00016712,2]
[333925369,1722631863433,-500.0,0.00016712,2]
[333925371,1722631863443,-1647.69,0.00016712,2]
[333925373,1722631863453,-580.13,0.00016712,2]
[333925375,1722631863463,-674.61,0.00016712,2]
[333925377,1722631863473,-500.0,0.00016712,2]
[333925378,1722631863482,-597.33,0.00016712,2]
[333925381,1722631863492,-500.0,0.00016712,2]
[333925383,1722631863502,-5044.32,0.00016712,2]
[333925385,1722631863512,-500.0,0.00016712,2]
[333925386,1722631863522,-1410.02,0.00016712,2]
[333925388,1722631863532,-1670.95,0.00016712,2]
[333925390,1722631863543,-500.0,0.00016712,2]
[333925392,1722631863553,-430.9301472,0.00016712,2]
[333925394,1722631863563,-1333.37,0.00016712,2]
[333925396,1722631863573,-3305.18,0.00016712,2]
[333925398,1722631863582,-500.0,0.00016712,2]
[333925400,1722631863592,-5839.16,0.00016712,2]
[333925402,1722631863602,-500.0,0.00016712,2]
[333925404,1722631863611,-2491.77,0.00016712,2]
[333925406,1722631863623,-500.0,0.00016712,2]
[333925408,1722631863632,-500.0,0.00016712,2]
[333925410,1722631863641,-3253.37,0.00016712,2]
[333925412,1722631863651,-1525.69,0.00016712,2]
[333925414,1722631863661,-150.0,0.00016712,2]
[333925416,1722631863675,-680.81,0.00016712,2]
[333925418,1722631863684,-1475.58,0.00016712,2]
[333925420,1722631863694,-874.43,0.00016712,2]
[333925422,1722631863704,-881.6,0.00016712,2]
[333925424,1722631863715,-500.0,0.00016712,2]
[333925426,1722631863724,-1811.88,0.00016712,2]
[333925428,1722631863734,-963.16,0.00016712,2]
[333925430,1722631863744,-1489.44,0.00016712,2]
[333925432,1722631863754,-2222.35,0.00016712,2]
[333925434,1722631863764,-1632.57,0.00016712,2]
[333925437,1722631863773,-500.0,0.00016712,2]
[333925439,1722631863783,-1023.72,0.00016712,2]
[333925441,1722631863793,-500.0,0.00016712,2]
[333925443,1722631863803,-12414.66,0.00016712,2]
[333925445,1722631863813,-709.25,0.00016712,2]
[333925447,1722631863822,-652.1,0.00016712,2]
[333925449,1722631863832,-753.62,0.00016712,2]
[333925451,1722631863842,-506.18,0.00016712,2]
[333925453,1722631863852,-560.86,0.00016712,2]
[333925455,1722631863861,-641.97,0.00016712,2]
[333925457,1722631863871,-500.0,0.00016712,2]
[333925459,1722631863881,-500.0,0.00016712,2]
[333925461,1722631863890,-56866.82,0.00016712,2]
[333925463,1722631863900,-1035.53,0.00016712,2]
[333925465,1722631863910,-1941.09,0.00016712,2]
[333925467,1722631863921,-500.0,0.00016712,2]
[333925469,1722631863931,-2254.17,0.00016712,2]
[333925471,1722631863940,-1098.24,0.00016712,2]
[333925473,1722631863950,-2191.59,0.00016712,2]
[333925475,1722631863960,-1032.58,0.00016712,2]
[333925477,1722631863969,-534.81,0.00016712,2]
[333925479,1722631863980,-1164.82,0.00016712,2]
[333925481,1722631863990,-1471.92,0.00016712,2]
[333925483,1722631864001,-722.26,0.00016712,2]
[333925485,1722631864011,-151.0,0.00016712,2]
[333925487,1722631864020,-151.0,0.00016712,2]
[333925489,1722631864030,-151.0,0.00016712,2]
[333925491,1722631864039,-1289.96,0.00016712,2]
[333925494,1722631864049,-151.0,0.00016712,2]
[333925496,1722631864059,-929.85,0.00016712,2]
[333925498,1722631864069,-1026.06,0.00016712,2]
[333925500,1722631864078,-2008.59,0.00016712,2]
[333925502,1722631864089,-1825.01,0.00016712,2]
[333925504,1722631864099,-876.3,0.00016712,2]
[333925506,1722631864108,-500.0,0.00016712,2]
[333925507,1722631864117,-1590.68,0.00016712,2]
[333925509,1722631864127,-1819.5,0.00016712,2]
[333925511,1722631864136,-4221.24,0.00016712,2]
[333925513,1722631864145,-500.0,0.00016712,2]
[333925515,1722631864155,-500.0,0.00016712,2]
[333925517,1722631864164,-2709.73,0.00016712,2]
[333925520,1722631864176,-1273.14,0.00016712,2]
[333925522,1722631864185,-2065.12,0.00016712,2]
[333925524,1722631864195,-777.69,0.00016712,2]
[333925526,1722631864205,-500.0,0.00016712,2]
[333925528,1722631864215,-21339.92,0.00016712,2]
[333925530,1722631864225,-728.61,0.00016712,2]
[333925532,1722631864235,-1275.99,0.00016712,2]
[333925534,1722631864244,-2937.5,0.00016712,2]
[333925536,1722631864255,-536.05,0.00016712,2]
[333925538,1722631864265,-2027.9,0.00016712,2]
[333925540,1722631864275,-1082.28,0.00016712,2]
[333925542,1722631864285,-500.0,0.00016712,2]
[333925544,1722631864296,-342.82387437,0.00016712,2]
[333925546,1722631864305,-1697.37,0.00016712,2]
[333925548,1722631864315,-500.0,0.00016712,2]
[333925550,1722631864325,-500.0,0.00016712,2]
[333925552,1722631864334,-10282.29,0.00016712,2]
[333925554,1722631864344,-1205.76,0.00016712,2]
[333925556,1722631864353,-1232.26,0.00016712,2]
[333925558,1722631864363,-8341.36,0.00016712,2]
[333925560,1722631864373,-500.0,0.00016712,2]
[333925562,1722631864383,-500.0,0.00016712,2]
[333925564,1722631864393,-18588.87,0.00016712,2]
[333925566,1722631864403,-2444.44,0.00016712,2]
[333925568,1722631864413,-811.82,0.00016712,2]
[333925570,1722631864426,-1028.42,0.00016712,2]
[333925572,1722631864437,-1666.82,0.00016712,2]
[333925574,1722631864447,-2041.7,0.00016712,2]
[333925576,1722631864459,-500.0,0.00016712,2]
[333925578,1722631864469,-854.03,0.00016712,2]
[333925580,1722631864479,-2549.35,0.00016712,2]
[333925582,1722631864488,-3907.73,0.00016712,2]
[333925584,1722631864498,-818.92,0.00016712,2]
[333925586,1722631864508,-962.09,0.00016712,2]
[333925588,1722631864518,-2495.02,0.00016712,2]
[333925590,1722631864527,-12083.15,0.00016712,2]
[333925592,1722631864537,-4999.3,0.00016712,2]
[333925594,1722631864546,-2085.16,0.00016712,2]
[333925596,1722631864555,-638.28,0.00016712,2]
[333925598,1722631864565,-2257.59,0.00016712,2]
[333925600,1722631864575,-2414.82,0.00016712,2]
[333925602,1722631864584,-151.0,0.00016712,2]
[333925604,1722631864594,-151.0,0.00016712,2]
[333925606,1722631864603,-272.666974,0.00016712,2]
[333925608,1722631864613,-1355.63,0.00016712,2]
[333925610,1722631864623,-500.0,0.00016712,2]
[333925612,1722631864632,-500.0,0.00016712,2]
[333925614,1722631864641,-500.0,0.00016712,2]
[333925616,1722631864651,-500.0,0.00016712,2]
[333925618,1722631864660,-874.71,0.00016712,2]
[333925621,1722631864676,-500.0,0.00016712,2]
[333925623,1722631864685,-608.96,0.00016712,2]
[333925625,1722631864695,-259.60169816,0.00016712,2]
[333925627,1722631864705,-9705.12,0.00016712,2]
[333925629,1722631864715,-500.0,0.00016712,2]
[333925631,1722631864724,-1893.08,0.00016712,2]
[333925633,1722631864734,-14082.4,0.00016712,2]
[333925635,1722631864743,-500.0,0.00016712,2]
[333925637,1722631864755,-523.03,0.00016712,2]
[333925639,1722631864764,-1119.23,0.00016712,2]
[333925641,1722631864774,-683.87,0.00016712,2]
[333925643,1722631864783,-151.0,0.00016712,2]
[333925645,1722631864793,-151.0,0.00016712,2]
[333925647,1722631864803,-151.0,0.00016712,2]
[333925649,1722631864812,-151.0,0.00016712,2]
[333925651,1722631864822,-500.0,0.00016712,2]
[333925653,1722631864831,-1860.28,0.00016712,2]
[333925655,1722631864841,-500.0,0.00016712,2]
[333925657,1722631864850,-500.0,0.00016712,2]
[333925659,1722631864859,-1382.6,0.00016712,2]
[333925661,1722631864869,-903.96,0.00016712,2]
[333925663,1722631864879,-954.34,0.00016712,2]
[333925665,1722631864889,-3530.0,0.00016712,2]
[333925667,1722631864898,-500.0,0.00016712,2]
[333925669,1722631864908,-3961.34,0.00016712,2]
[333925671,1722631864920,-500.0,0.00016712,2]
[333925673,1722631864930,-500.0,0.00016712,2]
[333925675,1722631864939,-500.0,0.00016712,2]
[333925676,1722631864948,-843.81,0.00016712,2]
[333925677,1722631864958,-12529.11,0.00016712,2]
[333925678,1722631864968,-500.0,0.00016712,2]
[333925679,1722631864978,-500.0,0.00016712,2]
[333925680,1722631864988,-639.03,0.00016712,2]
[333925681,1722631864998,-500.0,0.00016712,2]
[333925682,1722631865008,-500.0,0.00016712,2]
[333925683,1722631865018,-3001.26,0.00016712,2]
[333925685,1722631865028,-500.0,0.00016712,2]
[333925687,1722631865037,-1798.8,0.00016712,2]
[333925689,1722631865047,-683.57,0.00016712,2]
[333925691,1722631865057,-500.0,0.00016712,2]
[333925693,1722631865067,-5697.34,0.00016712,2]
[333925695,1722631865076,-1463.12,0.00016712,2]
[333925697,1722631865086,-4074.77,0.00016712,2]
[333925699,1722631865096,-897.77,0.00016712,2]
[333925701,1722631865106,-878.31,0.00016712,2]
[333925703,1722631865115,-5102.81,0.00016712,2]
[333925705,1722631865126,-1743.47,0.00016712,2]
[333925707,1722631865136,-655.72,0.00016712,2]
[333925709,1722631865146,-500.0,0.00016712,2]
[333925712,1722631865155,-500.0,0.00016712,2]
[333925714,1722631865166,-1173.24,0.00016712,2]
[333925716,1722631865177,-500.0,0.00016712,2]
[333925717,1722631865187,-500.0,0.00016712,2]
[333925719,1722631865197,-6837.04,0.00016712,2]
[333925720,1722631865207,-5756.18,0.00016712,2]
[333925721,1722631865216,-1257.32,0.00016712,2]
[333925722,1722631865226,-500.0,0.00016712,2]
[333925723,1722631865237,-500.0,0.00016712,2]
[333925724,1722631865247,-1650.22,0.00016712,2]
[333925725,1722631865257,-2765.65,0.00016712,2]
[333925726,1722631865267,-500.0,0.00016712,2]
[333925727,1722631865277,-2301.74,0.00016712,2]
[333925728,1722631865287,-6409.64,0.00016712,2]
[333925729,1722631865297,-1236.74,0.00016712,2]
[333925730,1722631865307,-509.19,0.00016712,2]
[333925731,1722631865316,-733.33,0.00016712,2]
[333925732,1722631865326,-500.0,0.00016712,2]
[333925733,1722631865335,-500.0,0.00016712,2]
[333925734,1722631865345,-500.0,0.00016712,2]
[333925735,1722631865355,-5372.26,0.00016712,2]
[333925736,1722631865365,-5544.95,0.00016712,2]
[333925737,1722631865375,-3951.1,0.00016712,2]
[333925738,1722631865384,-500.0,0.00016712,2]
[333925739,1722631865394,-1851.65,0.00016712,2]
[333925740,1722631865403,-2577.99,0.00016712,2]
[333925741,1722631865413,-3586.66,0.00016712,2]
[333925742,1722631865425,-1224.81,0.00016712,2]
[333925743,1722631865434,-151.0,0.00016712,2]
[333925744,1722631865444,-2249.46,0.00016712,2]
[333925745,1722631865453,-151.0,0.00016712,2]
[333925746,1722631865463,-1209.35,0.00016712,2]
[333925747,1722631865473,-500.0,0.00016712,2]
[333925753,1722631865583,-500.0,0.00016712,2]
[333925755,1722631865594,-151.0,0.00016712,2]
[333925757,1722631865604,-10535.6,0.00016712,2]
[333925759,1722631865614,-2406.02,0.00016712,2]
[333925761,1722631865624,-1453.7,0.00016712,2]
[333925763,1722631865634,-232.414014,0.00016712,2]
[333925766,1722631865646,-559.04,0.00016712,2]
[333925768,1722631865657,-2538.45,0.00016712,2]
[333925770,1722631865668,-500.0,0.00016712,2]
[333925772,1722631865679,-8692.9,0.00016712,2]
[333925774,1722631865688,-500.0,0.00016712,2]
[333925776,1722631865698,-500.0,0.00016712,2]
[333925778,1722631865707,-3396.73,0.00016712,2]
[333925780,1722631865717,-2268.82,0.00016712,2]
[333925782,1722631865726,-3668.51,0.00016712,2]
[333925784,1722631865735,-1514.47,0.00016712,2]
[333925786,1722631865748,-500.0,0.00016712,2]
[333925788,1722631865758,-1406.85,0.00016712,2]
[333925790,1722631865768,-523.86,0.00016712,2]
[333925792,1722631865777,-502.95,0.00016712,2]
[333925794,1722631865787,-688.7,0.00016712,2]
[333925796,1722631865797,-1979.47,0.00016712,2]